[Event "*** Titled Tuesday Blitz"]
[Site "Chess.com"]
[Date "2020.04.14"]
[Round "2"]
[White "maxsergej"]
[Black "TregubovP"]
[Result "0-1"]
[WhiteElo "2237"]
[BlackElo "2491"]
[TimeControl "180+1"]
[EndTime "10:17:00 PDT"]
[Termination "TregubovP won on time"]

1. e4 {[%clk 0:03:00.9]} 1... e6 {[%clk 0:02:59.6]} 2. d4 {[%clk 0:03:00.5]}
2... d5 {[%clk 0:02:59.4]} 3. Nd2 {[%clk 0:03:00.5]} 3... c5 {[%clk 0:02:58.8]}
4. exd5 {[%clk 0:03:00.4]} 4... exd5 {[%clk 0:02:58.5]} 5. Ngf3 {[%clk
0:02:59.6]} 5... Nc6 {[%clk 0:02:58.5]} 6. Bb5 {[%clk 0:02:59.5]} 6... Qe7+
{[%clk 0:02:57.8]} 7. Qe2 {[%clk 0:02:58.1]} 7... Qxe2+ {[%clk 0:02:57.5]} 8.
Kxe2 {[%clk 0:02:57.3]} 8... a6 {[%clk 0:02:56.2]} 9. Bxc6+ {[%clk 0:02:56.9]}
9... bxc6 {[%clk 0:02:56.4]} 10. dxc5 {[%clk 0:02:57.2]} 10... Bxc5 {[%clk
0:02:55.6]} 11. Nb3 {[%clk 0:02:57.5]} 11... Bd6 {[%clk 0:02:55.8]} 12. Be3
{[%clk 0:02:54.5]} 12... Nf6 {[%clk 0:02:40.3]} 13. h3 {[%clk 0:02:52.1]} 13...
a5 {[%clk 0:02:34.7]} 14. a4 {[%clk 0:02:49.7]} 14... Ba6+ {[%clk 0:02:31.6]}
15. Kd1 {[%clk 0:02:42.6]} 15... Kd7 {[%clk 0:02:02.8]} 16. Nxa5 {[%clk
0:02:27.4]} 16... Rhb8 {[%clk 0:02:01.2]} 17. Nb3 {[%clk 0:02:25.9]} 17... Bc4
{[%clk 0:01:57.2]} 18. Nfd2 {[%clk 0:02:22]} 18... Rb4 {[%clk 0:01:40.9]} 19.
Nxc4 {[%clk 0:01:52.8]} 19... dxc4 {[%clk 0:01:36.8]} 20. Nd2 {[%clk 0:01:52.8]}
20... Rbxa4 {[%clk 0:01:31.3]} 21. Rxa4 {[%clk 0:01:45.1]} 21... Rxa4 {[%clk
0:01:31.7]} 22. Ke2 {[%clk 0:01:44.1]} 22... Nd5 {[%clk 0:01:31.6]} 23. Rd1
{[%clk 0:01:27.6]} 23... c3 {[%clk 0:01:26.1]} 24. b3 {[%clk 0:01:12.4]} 24...
Ra2 {[%clk 0:01:23.9]} 25. Nc4 {[%clk 0:00:58.1]} 25... Rxc2+ {[%clk 0:01:22.2]}
26. Kd3 {[%clk 0:00:57.6]} 26... Ra2 {[%clk 0:01:19]} 27. Nxd6 {[%clk
0:00:46.9]} 27... Kxd6 {[%clk 0:01:18.5]} 28. Kc4 {[%clk 0:00:43.5]} 28... Re2
{[%clk 0:01:05]} 29. Bd4 {[%clk 0:00:36.9]} 29... g6 {[%clk 0:00:48.1]} 30. Bxc3
{[%clk 0:00:33.6]} 30... Rxf2 {[%clk 0:00:47.1]} 31. g3 {[%clk 0:00:26]} 31...
Rc2 {[%clk 0:00:46.8]} 32. Rd3 {[%clk 0:00:18.6]} 32... f5 {[%clk 0:00:46.8]}
33. Kd4 {[%clk 0:00:15.6]} 33... Rxc3 {[%clk 0:00:42.3]} 34. Rxc3 {[%clk
0:00:15.4]} 34... Nxc3 {[%clk 0:00:42.9]} 35. Kxc3 {[%clk 0:00:15.8]} 35... Kc5
{[%clk 0:00:43.2]} 0-1

[Event "*** Titled Tuesday Blitz"]
[Site "Chess.com"]
[Date "2020.04.14"]
[Round "2"]
[White "GMJustin"]
[Black "machupichu10"]
[Result "0-1"]
[WhiteElo "2315"]
[BlackElo "2800"]
[TimeControl "180+1"]
[EndTime "10:17:01 PDT"]
[Termination "machupichu10 won on time"]

1. e4 {[%clk 0:02:59]} 1... c5 {[%clk 0:02:58.4]} 2. Nf3 {[%clk 0:02:57.6]} 2...
e6 {[%clk 0:02:56.4]} 3. d4 {[%clk 0:02:53.6]} 3... cxd4 {[%clk 0:02:47.4]} 4.
Nxd4 {[%clk 0:02:52.8]} 4... Nc6 {[%clk 0:02:48.1]} 5. Nc3 {[%clk 0:02:43.4]}
5... Qc7 {[%clk 0:02:45.9]} 6. Be3 {[%clk 0:02:28.6]} 6... Nf6 {[%clk
0:02:42.9]} 7. f4 {[%clk 0:02:24.6]} 7... a6 {[%clk 0:02:37.3]} 8. e5 {[%clk
0:02:02.5]} 8... Ng8 {[%clk 0:02:34.1]} 9. Qf3 {[%clk 0:01:40]} 9... Nxd4 {[%clk
0:02:19.7]} 10. Bxd4 {[%clk 0:01:39.6]} 10... Qc6 {[%clk 0:02:19.8]} 11. Qe3
{[%clk 0:01:36.6]} 11... Ne7 {[%clk 0:02:18.7]} 12. Bb6 {[%clk 0:01:16.3]} 12...
Nf5 {[%clk 0:02:16.7]} 13. Qf2 {[%clk 0:01:16.2]} 13... Bb4 {[%clk 0:02:16.1]}
14. Bd3 {[%clk 0:00:43.7]} 14... Bxc3+ {[%clk 0:01:54.7]} 15. bxc3 {[%clk
0:00:43.6]} 15... Qxc3+ {[%clk 0:01:55.2]} 16. Ke2 {[%clk 0:00:43.9]} 16... d5
{[%clk 0:01:50.5]} 17. Qc5 {[%clk 0:00:25]} 17... Qxc5 {[%clk 0:01:47.1]} 18.
Bxc5 {[%clk 0:00:25.2]} 18... Ne7 {[%clk 0:01:45.3]} 19. c4 {[%clk 0:00:20.6]}
19... Bd7 {[%clk 0:01:43.9]} 20. Bxe7 {[%clk 0:00:05.9]} 20... Kxe7 {[%clk
0:01:43.6]} 21. cxd5 {[%clk 0:00:06.1]} 21... exd5 {[%clk 0:01:44.5]} 22. Rab1
{[%clk 0:00:06.1]} 22... b5 {[%clk 0:01:39.5]} 23. f5 {[%clk 0:00:05.3]} 23...
Rhc8 {[%clk 0:01:37.1]} 24. Rhc1 {[%clk 0:00:02.5]} 24... g6 {[%clk 0:00:54.1]}
25. g4 {[%clk 0:00:02]} 25... h5 {[%clk 0:00:53.8]} 26. h3 {[%clk 0:00:02.2]}
26... hxg4 {[%clk 0:00:38.1]} 27. hxg4 {[%clk 0:00:02]} 27... d4 {[%clk
0:00:31]} 28. Be4 {[%clk 0:00:01.7]} 28... gxf5 {[%clk 0:00:18.6]} 0-1

[Event "*** Titled Tuesday Blitz"]
[Site "Chess.com"]
[Date "2020.04.14"]
[Round "2"]
[White "CMS13"]
[Black "lhavas"]
[Result "0-1"]
[WhiteElo "2119"]
[BlackElo "2404"]
[TimeControl "180+1"]
[EndTime "10:17:02 PDT"]
[Termination "lhavas won by resignation"]

1. e4 {[%clk 0:03:00.9]} 1... Nf6 {[%clk 0:02:57.2]} 2. Nc3 {[%clk 0:02:59.7]}
2... d6 {[%clk 0:02:56.6]} 3. Bc4 {[%clk 0:02:59]} 3... g6 {[%clk 0:02:55.3]} 4.
d3 {[%clk 0:02:59.2]} 4... Bg7 {[%clk 0:02:55.4]} 5. f4 {[%clk 0:02:59.4]} 5...
O-O {[%clk 0:02:53.4]} 6. Nf3 {[%clk 0:02:58.5]} 6... c6 {[%clk 0:02:51.3]} 7.
Bb3 {[%clk 0:02:58]} 7... Bg4 {[%clk 0:02:48.2]} 8. O-O {[%clk 0:02:57.9]} 8...
Nbd7 {[%clk 0:02:47.9]} 9. h3 {[%clk 0:02:54.4]} 9... Bxf3 {[%clk 0:02:37.7]}
10. Qxf3 {[%clk 0:02:54.4]} 10... Nc5 {[%clk 0:02:38.6]} 11. Kh1 {[%clk
0:02:52.8]} 11... Nxb3 {[%clk 0:02:37]} 12. axb3 {[%clk 0:02:53.7]} 12... b5
{[%clk 0:02:22.3]} 13. e5 {[%clk 0:02:43.1]} 13... dxe5 {[%clk 0:02:13.6]} 14.
fxe5 {[%clk 0:02:41.8]} 14... Nd5 {[%clk 0:02:10.7]} 15. Nxd5 {[%clk 0:02:39.4]}
15... Qxd5 {[%clk 0:02:04.7]} 16. Qxd5 {[%clk 0:02:39.5]} 16... cxd5 {[%clk
0:02:04.6]} 17. d4 {[%clk 0:02:39.9]} 17... Rfc8 {[%clk 0:01:56.8]} 18. c3
{[%clk 0:02:39.6]} 18... a5 {[%clk 0:01:53.1]} 19. Bg5 {[%clk 0:02:39]} 19... e6
{[%clk 0:01:50.5]} 20. Be7 {[%clk 0:02:38.2]} 20... a4 {[%clk 0:01:48.5]} 21.
bxa4 {[%clk 0:02:36]} 21... bxa4 {[%clk 0:01:47.7]} 22. Ra2 {[%clk 0:02:32]}
22... Bf8 {[%clk 0:01:25.4]} 23. Bxf8 {[%clk 0:02:25.1]} 23... Kxf8 {[%clk
0:01:25.4]} 24. Rfa1 {[%clk 0:02:24.8]} 24... Rc4 {[%clk 0:01:25.4]} 25. Kg1
{[%clk 0:02:18.8]} 25... Rb8 {[%clk 0:01:19.8]} 26. Kf2 {[%clk 0:02:03.1]} 26...
a3 {[%clk 0:01:14.1]} 27. bxa3 {[%clk 0:02:02.2]} 27... Rxc3 {[%clk 0:01:13.3]}
28. Ke2 {[%clk 0:01:57.2]} 28... Ra8 {[%clk 0:01:08.2]} 29. a4 {[%clk 0:01:57]}
29... Ra5 {[%clk 0:01:02.9]} 30. Kd2 {[%clk 0:01:48.1]} 30... Rg3 {[%clk
0:00:59.7]} 31. Ke1 {[%clk 0:01:40.9]} 31... h5 {[%clk 0:00:53.3]} 32. Rb1
{[%clk 0:01:37]} 32... Rd3 {[%clk 0:00:51.1]} 33. Rd1 {[%clk 0:01:25.4]} 33...
Rc3 {[%clk 0:00:49.1]} 34. Rb1 {[%clk 0:01:13.5]} 34... Rc4 {[%clk 0:00:48.3]}
35. Rb8+ {[%clk 0:01:04.9]} 35... Kg7 {[%clk 0:00:46.7]} 36. Rd2 {[%clk
0:01:00.8]} 36... Raxa4 {[%clk 0:00:45.9]} 37. Rb7 {[%clk 0:00:59.3]} 37... Rxd4
{[%clk 0:00:43.7]} 38. Rf2 {[%clk 0:00:59.5]} 38... Rf4 {[%clk 0:00:41.5]} 39.
Rxf4 {[%clk 0:00:55.3]} 39... Rxf4 {[%clk 0:00:41.3]} 40. Kd2 {[%clk 0:00:53.8]}
40... Re4 {[%clk 0:00:41.6]} 41. Kd3 {[%clk 0:00:53.2]} 41... Rxe5 {[%clk
0:00:41.9]} 42. Rb4 {[%clk 0:00:50.1]} 42... Rg5 {[%clk 0:00:41.3]} 43. g4
{[%clk 0:00:49.8]} 43... hxg4 {[%clk 0:00:37.4]} 44. hxg4 {[%clk 0:00:49.8]}
44... e5 {[%clk 0:00:34.9]} 0-1

[Event "*** Titled Tuesday Blitz"]
[Site "Chess.com"]
[Date "2020.04.14"]
[Round "2"]
[White "SuperCheese"]
[Black "Aronyak1"]
[Result "0-1"]
[WhiteElo "2521"]
[BlackElo "2739"]
[TimeControl "180+1"]
[EndTime "10:17:04 PDT"]
[Termination "Aronyak1 won on time"]

1. d4 {[%clk 0:03:00.9]} 1... d5 {[%clk 0:03:00.1]} 2. c4 {[%clk 0:03:00.6]}
2... e6 {[%clk 0:03:00.6]} 3. Nc3 {[%clk 0:03:00.3]} 3... c6 {[%clk 0:03:01.2]}
4. Nf3 {[%clk 0:02:59.7]} 4... dxc4 {[%clk 0:03:00.4]} 5. a4 {[%clk 0:02:58.3]}
5... Bb4 {[%clk 0:02:59.9]} 6. Bd2 {[%clk 0:02:58.8]} 6... a5 {[%clk 0:02:59.6]}
7. e4 {[%clk 0:02:58]} 7... b5 {[%clk 0:02:55.5]} 8. Be2 {[%clk 0:02:58]} 8...
Bb7 {[%clk 0:02:53.7]} 9. O-O {[%clk 0:02:56.4]} 9... Nf6 {[%clk 0:02:52]} 10.
Qc2 {[%clk 0:02:56.4]} 10... Nbd7 {[%clk 0:02:46.4]} 11. Rfd1 {[%clk 0:02:42.2]}
11... h6 {[%clk 0:02:36.2]} 12. Rab1 {[%clk 0:02:30.3]} 12... O-O {[%clk
0:02:34.3]} 13. e5 {[%clk 0:02:26.9]} 13... Nd5 {[%clk 0:02:29.8]} 14. axb5
{[%clk 0:02:26.6]} 14... cxb5 {[%clk 0:02:25.2]} 15. Nxb5 {[%clk 0:02:25.8]}
15... N7b6 {[%clk 0:02:21.1]} 16. Nc3 {[%clk 0:02:10.2]} 16... Rc8 {[%clk
0:02:19.6]} 17. Ra1 {[%clk 0:02:02.8]} 17... Qe7 {[%clk 0:02:12.9]} 18. Ne4
{[%clk 0:01:56.1]} 18... Rfd8 {[%clk 0:02:10]} 19. h3 {[%clk 0:01:44.8]} 19...
Bxd2 {[%clk 0:02:06.4]} 20. Qxd2 {[%clk 0:01:44]} 20... a4 {[%clk 0:02:03.1]}
21. Nd6 {[%clk 0:01:42.7]} 21... Rxd6 {[%clk 0:02:03]} 22. exd6 {[%clk
0:01:42.8]} 22... Qxd6 {[%clk 0:02:03.9]} 23. Ne5 {[%clk 0:01:41.3]} 23... f6
{[%clk 0:01:57.6]} 24. Ng4 {[%clk 0:01:32.2]} 24... Nf4 {[%clk 0:01:38.6]} 25.
Bf1 {[%clk 0:01:32.2]} 25... Nfd5 {[%clk 0:01:21.8]} 26. Rac1 {[%clk 0:01:27.4]}
26... a3 {[%clk 0:01:20.3]} 27. Ne3 {[%clk 0:01:21.7]} 27... axb2 {[%clk
0:01:17.5]} 28. Qxb2 {[%clk 0:01:22.6]} 28... c3 {[%clk 0:01:14.6]} 29. Qb3
{[%clk 0:01:21.6]} 29... Rc7 {[%clk 0:01:11.6]} 30. Ra1 {[%clk 0:01:11.2]} 30...
Nxe3 {[%clk 0:01:07]} 31. fxe3 {[%clk 0:01:11]} 31... Nd5 {[%clk 0:01:06.2]} 32.
Re1 {[%clk 0:01:06.9]} 32... f5 {[%clk 0:01:03.8]} 33. Ra7 {[%clk 0:01:02.3]}
33... c2 {[%clk 0:01:00.1]} 34. Rc1 {[%clk 0:00:38.2]} 34... Qc6 {[%clk
0:00:57.9]} 35. Kf2 {[%clk 0:00:15.4]} 35... f4 {[%clk 0:00:53.7]} 36. e4 {[%clk
0:00:15.7]} 36... Nf6 {[%clk 0:00:53.1]} 37. Bd3 {[%clk 0:00:15.2]} 37... Nxe4+
{[%clk 0:00:50.8]} 38. Bxe4 {[%clk 0:00:15.4]} 38... Qxe4 {[%clk 0:00:51.7]} 39.
Rxb7 {[%clk 0:00:12.1]} 39... Rxb7 {[%clk 0:00:51.4]} 40. Qxc2 {[%clk
0:00:11.8]} 40... Qxd4+ {[%clk 0:00:51.4]} 41. Kf1 {[%clk 0:00:12.1]} 41... Rb2
{[%clk 0:00:48.9]} 0-1

[Event "*** Titled Tuesday Blitz"]
[Site "Chess.com"]
[Date "2020.04.14"]
[Round "2"]
[White "MateSchmate"]
[Black "Zkid"]
[Result "0-1"]
[WhiteElo "2570"]
[BlackElo "2833"]
[TimeControl "180+1"]
[EndTime "10:17:05 PDT"]
[Termination "Zkid won by resignation"]

1. e4 {[%clk 0:03:00.9]} 1... e6 {[%clk 0:02:59.3]} 2. d4 {[%clk 0:02:59.9]}
2... d5 {[%clk 0:02:59.2]} 3. Bd3 {[%clk 0:03:00.8]} 3... dxe4 {[%clk
0:02:58.8]} 4. Bxe4 {[%clk 0:03:01.7]} 4... Nf6 {[%clk 0:02:59.2]} 5. Bf3 {[%clk
0:03:02]} 5... c5 {[%clk 0:02:59.5]} 6. Ne2 {[%clk 0:03:02.6]} 6... Nc6 {[%clk
0:02:59.8]} 7. Be3 {[%clk 0:03:02.9]} 7... cxd4 {[%clk 0:03:00]} 8. Nxd4 {[%clk
0:03:03.5]} 8... Ne5 {[%clk 0:03:00.1]} 9. Be2 {[%clk 0:03:03.4]} 9... Nd5
{[%clk 0:02:52]} 10. Bc1 {[%clk 0:02:58.3]} 10... Bc5 {[%clk 0:02:40.4]} 11. O-O
{[%clk 0:02:55.1]} 11... O-O {[%clk 0:02:38]} 12. Nb3 {[%clk 0:02:52.6]} 12...
Be7 {[%clk 0:02:32.3]} 13. c4 {[%clk 0:02:52.6]} 13... Nb6 {[%clk 0:02:29.4]}
14. Qc2 {[%clk 0:02:49.8]} 14... Ng6 {[%clk 0:02:17.5]} 15. Be3 {[%clk
0:02:46.2]} 15... Bg5 {[%clk 0:02:11.2]} 16. Rd1 {[%clk 0:02:41.4]} 16... Qf6
{[%clk 0:02:10.4]} 17. Bc5 {[%clk 0:02:03.3]} 17... Rd8 {[%clk 0:01:58.1]} 18.
Nc3 {[%clk 0:02:01.7]} 18... Qf5 {[%clk 0:01:37.4]} 19. Qxf5 {[%clk 0:01:39.8]}
19... exf5 {[%clk 0:01:37.3]} 20. Rxd8+ {[%clk 0:01:36.8]} 20... Bxd8 {[%clk
0:01:38.2]} 21. Rd1 {[%clk 0:01:33]} 21... Be6 {[%clk 0:01:21.9]} 22. Nd5 {[%clk
0:01:32.6]} 22... Nxd5 {[%clk 0:01:15.9]} 23. cxd5 {[%clk 0:01:32.8]} 23... Bd7
{[%clk 0:01:16.4]} 24. g3 {[%clk 0:01:26.6]} 24... b6 {[%clk 0:01:14.1]} 25. Be3
{[%clk 0:01:25.5]} 25... Rc8 {[%clk 0:01:10.2]} 26. Rc1 {[%clk 0:01:24.9]} 26...
Rxc1+ {[%clk 0:01:03.2]} 27. Bxc1 {[%clk 0:01:25.8]} 27... Bf6 {[%clk
0:01:01.9]} 28. f4 {[%clk 0:01:22.9]} 28... Ne7 {[%clk 0:00:59.5]} 29. Bf3
{[%clk 0:01:17.4]} 29... Nc8 {[%clk 0:00:50]} 30. Kf2 {[%clk 0:01:14.5]} 30...
Nd6 {[%clk 0:00:48.4]} 31. Nd2 {[%clk 0:01:12]} 31... Bd4+ {[%clk 0:00:48.1]}
32. Ke2 {[%clk 0:01:11.5]} 32... Bb5+ {[%clk 0:00:47.8]} 33. Kd1 {[%clk
0:01:11.7]} 33... Bg1 {[%clk 0:00:47.4]} 34. h3 {[%clk 0:01:06]} 34... Bh2
{[%clk 0:00:45.7]} 35. Nb3 {[%clk 0:00:47.2]} 35... Bxg3 {[%clk 0:00:44.1]} 36.
Nd4 {[%clk 0:00:47.3]} 36... Bf1 {[%clk 0:00:38.1]} 37. Bd2 {[%clk 0:00:45.3]}
37... Bxh3 {[%clk 0:00:35.8]} 38. Ke2 {[%clk 0:00:44]} 38... Bg4 {[%clk
0:00:34.3]} 39. Bb4 {[%clk 0:00:41.9]} 39... Bxf4 {[%clk 0:00:33.7]} 40. Nc6
{[%clk 0:00:40.3]} 40... a5 {[%clk 0:00:33.5]} 41. Ne7+ {[%clk 0:00:32.2]} 41...
Kf8 {[%clk 0:00:30.6]} 42. Bxg4 {[%clk 0:00:31.7]} 42... fxg4 {[%clk 0:00:27.5]}
43. Bxd6 {[%clk 0:00:28.8]} 43... Bxd6 {[%clk 0:00:28.4]} 44. Nf5 {[%clk
0:00:29.4]} 44... Be5 {[%clk 0:00:28.7]} 45. b3 {[%clk 0:00:29.2]} 45... g6
{[%clk 0:00:29.2]} 46. Nh6 {[%clk 0:00:29.2]} 46... f5 {[%clk 0:00:28.8]} 47.
Ke3 {[%clk 0:00:29.3]} 47... Kg7 {[%clk 0:00:28.8]} 48. d6 {[%clk 0:00:29.8]}
48... Kxh6 {[%clk 0:00:28.4]} 49. d7 {[%clk 0:00:30.7]} 49... Bc7 {[%clk
0:00:28.7]} 0-1

[Event "*** Titled Tuesday Blitz"]
[Site "Chess.com"]
[Date "2020.04.14"]
[Round "2"]
[White "indfraeng"]
[Black "wnstop"]
[Result "1-0"]
[WhiteElo "2250"]
[BlackElo "2579"]
[TimeControl "180+1"]
[EndTime "10:17:05 PDT"]
[Termination "indfraeng won by resignation"]

1. d4 {[%clk 0:03:00.9]} 1... Nf6 {[%clk 0:02:59.9]} 2. c4 {[%clk 0:03:00]} 2...
e6 {[%clk 0:03:00]} 3. g3 {[%clk 0:02:59.5]} 3... d5 {[%clk 0:02:51.7]} 4. Bg2
{[%clk 0:02:58.4]} 4... Be7 {[%clk 0:02:51.8]} 5. Nf3 {[%clk 0:02:56.4]} 5...
O-O {[%clk 0:02:52.2]} 6. O-O {[%clk 0:02:55.7]} 6... dxc4 {[%clk 0:02:52.2]} 7.
Ne5 {[%clk 0:02:53.8]} 7... Nc6 {[%clk 0:02:46.1]} 8. Nxc6 {[%clk 0:02:51.6]}
8... bxc6 {[%clk 0:02:45.7]} 9. Na3 {[%clk 0:02:47.3]} 9... Bxa3 {[%clk
0:01:44]} 10. bxa3 {[%clk 0:02:48.2]} 10... Nd5 {[%clk 0:01:39.5]} 11. Qa4
{[%clk 0:02:40]} 11... Nb6 {[%clk 0:01:32.6]} 12. Qd1 {[%clk 0:02:23.9]} 12...
Rb8 {[%clk 0:01:26]} 13. Rb1 {[%clk 0:02:17.9]} 13... Bb7 {[%clk 0:01:24.2]} 14.
a4 {[%clk 0:02:16.1]} 14... Qe7 {[%clk 0:01:11.8]} 15. Qc2 {[%clk 0:02:01]}
15... a5 {[%clk 0:01:01.3]} 16. Bd2 {[%clk 0:01:57.2]} 16... e5 {[%clk
0:00:52.1]} 17. Bxa5 {[%clk 0:01:50.2]} 17... exd4 {[%clk 0:00:49.8]} 18. Bxb6
{[%clk 0:01:48.3]} 18... cxb6 {[%clk 0:00:49.5]} 19. Rxb6 {[%clk 0:01:45.4]}
19... Ba8 {[%clk 0:00:21.9]} 20. Rxb8 {[%clk 0:01:36]} 20... Rxb8 {[%clk
0:00:21.6]} 21. Qxc4 {[%clk 0:01:36.4]} 21... Qb4 {[%clk 0:00:13.6]} 22. Qa6
{[%clk 0:01:14.4]} 22... g6 {[%clk 0:00:07.3]} 23. Bxc6 {[%clk 0:01:08.7]} 23...
Bxc6 {[%clk 0:00:07.3]} 24. Qxc6 {[%clk 0:01:09.6]} 24... Qb2 {[%clk 0:00:06.1]}
25. Qc4 {[%clk 0:01:03.2]} 25... Rb4 {[%clk 0:00:05.9]} 26. Qc8+ {[%clk
0:01:02.2]} 26... Kg7 {[%clk 0:00:06.1]} 27. a5 {[%clk 0:01:02.6]} 27... Qxe2
{[%clk 0:00:03]} 28. a6 {[%clk 0:01:01.5]} 28... Ra4 {[%clk 0:00:02.9]} 29. Qd8
{[%clk 0:00:57.6]} 29... Qxa6 {[%clk 0:00:02.3]} 30. Rd1 {[%clk 0:00:57.3]}
30... Qa7 {[%clk 0:00:01.9]} 31. Qd5 {[%clk 0:00:54.5]} 31... Rxa2 {[%clk
0:00:01.7]} 32. Rxd4 {[%clk 0:00:53]} 32... Ra1+ {[%clk 0:00:02]} 33. Kg2 {[%clk
0:00:53.6]} 33... Qe7 {[%clk 0:00:02.6]} 34. Re4 {[%clk 0:00:52.8]} 34... Qf6
{[%clk 0:00:03]} 35. Rf4 {[%clk 0:00:52.1]} 35... Qe7 {[%clk 0:00:02.7]} 36.
Qd4+ {[%clk 0:00:52.1]} 36... Qe5 {[%clk 0:00:01.9]} 37. Qxe5+ {[%clk
0:00:51.7]} 1-0

[Event "*** Titled Tuesday Blitz"]
[Site "Chess.com"]
[Date "2020.04.14"]
[Round "2"]
[White "crywolf1986"]
[Black "crescentmoon2411"]
[Result "0-1"]
[WhiteElo "2594"]
[BlackElo "2907"]
[TimeControl "180+1"]
[EndTime "10:17:06 PDT"]
[Termination "crescentmoon2411 won by resignation"]

1. d4 {[%clk 0:03:00.8]} 1... Nf6 {[%clk 0:02:58.8]} 2. Nf3 {[%clk 0:02:57.5]}
2... g6 {[%clk 0:02:57.1]} 3. c4 {[%clk 0:02:57.8]} 3... Bg7 {[%clk 0:02:57.2]}
4. g3 {[%clk 0:02:58.3]} 4... O-O {[%clk 0:02:57]} 5. Bg2 {[%clk 0:02:59]} 5...
d6 {[%clk 0:02:54.9]} 6. O-O {[%clk 0:02:59.1]} 6... Nbd7 {[%clk 0:02:55]} 7.
Nc3 {[%clk 0:02:59.4]} 7... e5 {[%clk 0:02:51.9]} 8. e3 {[%clk 0:02:59]} 8... c6
{[%clk 0:02:39.8]} 9. b3 {[%clk 0:02:59]} 9... Re8 {[%clk 0:02:38.5]} 10. a4
{[%clk 0:02:59]} 10... exd4 {[%clk 0:02:34]} 11. exd4 {[%clk 0:02:54.3]} 11...
Nf8 {[%clk 0:02:29.4]} 12. Bb2 {[%clk 0:02:51.7]} 12... Bf5 {[%clk 0:02:23.9]}
13. a5 {[%clk 0:02:39.4]} 13... a6 {[%clk 0:02:13.1]} 14. Qd2 {[%clk 0:02:31.2]}
14... Ne4 {[%clk 0:02:08.8]} 15. Nxe4 {[%clk 0:02:30.5]} 15... Bxe4 {[%clk
0:02:09.7]} 16. Rfe1 {[%clk 0:02:24.9]} 16... Qf6 {[%clk 0:01:54]} 17. Nh4
{[%clk 0:02:12.5]} 17... Bxg2 {[%clk 0:01:52.1]} 18. Nxg2 {[%clk 0:02:13.4]}
18... Ne6 {[%clk 0:01:48.3]} 19. h4 {[%clk 0:01:12.4]} 19... Nxd4 {[%clk
0:01:45.2]} 20. Bxd4 {[%clk 0:00:59.2]} 20... Qxd4 {[%clk 0:01:46.1]} 21. Rxe8+
{[%clk 0:00:53.2]} 21... Rxe8 {[%clk 0:01:45.2]} 22. Qxd4 {[%clk 0:00:42.6]}
22... Bxd4 {[%clk 0:01:46.1]} 23. Rd1 {[%clk 0:00:43.2]} 23... Bc5 {[%clk
0:01:33]} 24. Kf1 {[%clk 0:00:39.2]} 24... Bb4 {[%clk 0:01:27.1]} 25. Ne3 {[%clk
0:00:36.4]} 25... Re6 {[%clk 0:01:23.8]} 26. Ra1 {[%clk 0:00:34.2]} 26... Bc5
{[%clk 0:01:04.7]} 27. Ke2 {[%clk 0:00:32.2]} 27... Bxe3 {[%clk 0:00:59.3]} 28.
fxe3 {[%clk 0:00:31.8]} 28... Kf8 {[%clk 0:00:57.8]} 29. Ra4 {[%clk 0:00:29.8]}
29... Ke8 {[%clk 0:00:49.6]} 30. Rb4 {[%clk 0:00:29.4]} 30... Re7 {[%clk
0:00:49.8]} 31. Rb6 {[%clk 0:00:26.1]} 31... Kd8 {[%clk 0:00:50]} 32. b4 {[%clk
0:00:25.4]} 32... Kc7 {[%clk 0:00:48.4]} 33. b5 {[%clk 0:00:25.4]} 33... axb5
{[%clk 0:00:48.3]} 34. cxb5 {[%clk 0:00:25.4]} 34... c5 {[%clk 0:00:48.7]} 35.
Kd3 {[%clk 0:00:23.7]} 35... f5 {[%clk 0:00:47.4]} 36. Kd2 {[%clk 0:00:15.1]}
36... Re4 {[%clk 0:00:46.2]} 37. Kd3 {[%clk 0:00:12.7]} 37... Ra4 {[%clk
0:00:45.9]} 0-1

[Event "*** Titled Tuesday Blitz"]
[Site "Chess.com"]
[Date "2020.04.14"]
[Round "2"]
[White "Vincent_Vega95"]
[Black "Gubajdullin"]
[Result "1-0"]
[WhiteElo "2768"]
[BlackElo "2529"]
[TimeControl "180+1"]
[EndTime "10:17:07 PDT"]
[Termination "Vincent_Vega95 won on time"]

1. d4 {[%clk 0:02:59.6]} 1... Nf6 {[%clk 0:02:57.6]} 2. c4 {[%clk 0:03:00.1]}
2... g6 {[%clk 0:02:57.6]} 3. Nc3 {[%clk 0:03:00.6]} 3... Bg7 {[%clk 0:02:58.1]}
4. e4 {[%clk 0:03:00.9]} 4... d6 {[%clk 0:02:58.6]} 5. Nf3 {[%clk 0:03:01.4]}
5... O-O {[%clk 0:02:58.8]} 6. Be2 {[%clk 0:03:02]} 6... e5 {[%clk 0:02:59]} 7.
O-O {[%clk 0:03:02.6]} 7... Nc6 {[%clk 0:02:59.1]} 8. d5 {[%clk 0:03:03.1]} 8...
Ne7 {[%clk 0:02:59.2]} 9. Nd2 {[%clk 0:03:03.7]} 9... c5 {[%clk 0:02:57.8]} 10.
a3 {[%clk 0:03:02.9]} 10... Ne8 {[%clk 0:02:51.2]} 11. b4 {[%clk 0:03:02]} 11...
b6 {[%clk 0:02:51.3]} 12. Bb2 {[%clk 0:02:59.7]} 12... f5 {[%clk 0:02:51.2]} 13.
exf5 {[%clk 0:02:57.2]} 13... gxf5 {[%clk 0:02:50.3]} 14. f4 {[%clk 0:02:50.1]}
14... exf4 {[%clk 0:02:43.2]} 15. Rxf4 {[%clk 0:02:48.9]} 15... Ng6 {[%clk
0:02:43.2]} 16. Rf1 {[%clk 0:02:48.6]} 16... Bd4+ {[%clk 0:02:43.1]} 17. Kh1
{[%clk 0:02:48.7]} 17... Qf6 {[%clk 0:02:42.6]} 18. Qc2 {[%clk 0:02:47.5]} 18...
f4 {[%clk 0:02:15.8]} 19. Nce4 {[%clk 0:02:28.5]} 19... Qg7 {[%clk 0:02:12.2]}
20. Bxd4 {[%clk 0:02:28.3]} 20... cxd4 {[%clk 0:02:11.3]} 21. Nf3 {[%clk
0:02:26.8]} 21... Bf5 {[%clk 0:02:03.4]} 22. Bd3 {[%clk 0:02:26.9]} 22... a5
{[%clk 0:02:01.2]} 23. Neg5 {[%clk 0:02:19.6]} 23... Bxd3 {[%clk 0:01:41.5]} 24.
Qxd3 {[%clk 0:02:20.5]} 24... Ne5 {[%clk 0:01:37.3]} 25. Qxd4 {[%clk 0:02:16.3]}
25... Nxf3 {[%clk 0:01:23.9]} 26. Nxf3 {[%clk 0:02:16]} 26... Qxd4 {[%clk
0:01:13]} 27. Nxd4 {[%clk 0:02:15.6]} 27... axb4 {[%clk 0:01:13]} 28. axb4
{[%clk 0:02:15.6]} 28... Rxa1 {[%clk 0:01:12.1]} 29. Rxa1 {[%clk 0:02:16.5]}
29... Nf6 {[%clk 0:01:10]} 30. Rf1 {[%clk 0:01:57.2]} 30... Rc8 {[%clk
0:00:26.5]} 31. Nc6 {[%clk 0:01:56.1]} 31... Ra8 {[%clk 0:00:26.4]} 32. g3
{[%clk 0:01:55.3]} 32... Nh5 {[%clk 0:00:15.6]} 33. g4 {[%clk 0:01:53.6]} 33...
Nf6 {[%clk 0:00:12.4]} 34. Rxf4 {[%clk 0:01:54]} 34... Kg7 {[%clk 0:00:12.4]}
35. Ne7 {[%clk 0:01:47.5]} 35... Ra2 {[%clk 0:00:09.3]} 36. h4 {[%clk
0:01:45.1]} 36... Rb2 {[%clk 0:00:06.9]} 37. b5 {[%clk 0:01:44.4]} 37... Rc2
{[%clk 0:00:05.8]} 38. Nf5+ {[%clk 0:01:37.6]} 38... Kg6 {[%clk 0:00:05.7]} 39.
Nxd6 {[%clk 0:01:38.1]} 39... h5 {[%clk 0:00:05.9]} 40. gxh5+ {[%clk 0:01:12.7]}
40... Nxh5 {[%clk 0:00:05.1]} 41. Rg4+ {[%clk 0:01:12.8]} 41... Kf6 {[%clk
0:00:05.1]} 42. c5 {[%clk 0:01:12.9]} 42... bxc5 {[%clk 0:00:03.7]} 43. b6
{[%clk 0:01:12.5]} 43... Rb2 {[%clk 0:00:01.8]} 44. b7 {[%clk 0:00:58.5]} 1-0